[Event "MČR mládeže v rapid šachu 2024 H10"]
[Site "Harrachov, Czech Republic"]
[Date "????.??.??"]
[Round "1.7"]
[White "Milian Jakub"]
[Black "Bucek Vit"]
[Result "0-1"]
[TimeControl "20+5"]
[WhiteFideId "23750871"]
[BlackFideId "23750812"]
[WhiteElo "1506"]
[BlackElo "1586"]

1. e4 {[%clk 00:20:07]} {[%emt 00:00:03]} c5 {[%clk 00:20:09]} {[%emt
00:00:02]} 2. Nf3 {[%clk 00:20:10]} {[%emt 00:00:02]} Nc6 {[%clk 00:20:12]}
{[%emt 00:00:01]} 3. Bc4 {[%clk 00:20:13]} {[%emt 00:00:02]} g6 {[%clk
00:20:14]} {[%emt 00:00:03]} 4. Nc3 {[%clk 00:20:11]} {[%emt 00:00:07]} Bg7
{[%clk 00:20:18]} {[%emt 00:00:01]} 5. O-O {[%clk 00:20:12]} {[%emt 00:00:04]}
d6 {[%clk 00:20:22]} {[%emt 00:00:02]} 6. b3 {[%clk 00:20:13]} {[%emt
00:00:04]} Nf6 {[%clk 00:20:24]} {[%emt 00:00:02]} 7. Bb2 {[%clk 00:20:16]}
{[%emt 00:00:02]} O-O {[%clk 00:20:26]} {[%emt 00:00:03]} 8. Nd5 {[%clk
00:20:06]} {[%emt 00:00:15]} Nxe4 {[%clk 00:19:47]} {[%emt 00:00:44]} 9. Bxg7
{[%clk 00:20:03]} {[%emt 00:00:08]} Kxg7 {[%clk 00:19:47]} {[%emt 00:00:06]} 10.
Qc1 {[%clk 00:19:45]} {[%emt 00:00:23]} e6 {[%clk 00:19:04]} {[%emt 00:00:47]}
11. Qb2+ {[%clk 00:19:43]} {[%emt 00:00:07]} Nf6 {[%clk 00:19:04]} {[%emt
00:00:05]} 12. Ne3 {[%clk 00:19:09]} {[%emt 00:00:39]} d5 {[%clk 00:18:06]}
{[%emt 00:01:04]} 13. Bd3 {[%clk 00:18:54]} {[%emt 00:00:20]} Bd7 {[%emt
00:01:24]} 14. Rfe1 {[%clk 00:18:04]} {[%emt 00:00:18]} Kg8 {[%clk 00:16:04]}
{[%emt 00:01:24]} 15. c4 {[%clk 00:17:06]} {[%emt 00:01:03]} d4 {[%clk
00:15:25]} {[%emt 00:00:44]} 16. Nh4 {[%clk 00:16:41]} {[%emt 00:00:30]} dxe3
{[%clk 00:14:14]} {[%emt 00:01:16]} 17. Rxe3 {[%clk 00:16:44]} {[%emt
00:00:02]} Nd4 {[%clk 00:13:19]} {[%emt 00:01:00]} 18. Re5 {[%clk 00:16:19]}
{[%emt 00:00:29]} b6 {[%clk 00:12:54]} {[%emt 00:00:30]} 19. b4 {[%clk
00:16:20]} {[%emt 00:00:05]} Ng4 {[%clk 00:12:26]} {[%emt 00:00:33]} 20. Re4
{[%clk 00:16:23]} {[%emt 00:00:02]} Qxh4 {[%clk 00:12:10]} {[%emt 00:00:21]} 21.
h3 {[%clk 00:16:20]} {[%emt 00:00:08]} Qxf2+ {[%clk 00:10:25]} {[%emt
00:01:50]} 22. Kh1 {[%clk 00:16:23]} {[%emt 00:00:02]} Qg3 {[%clk 00:09:29]}
{[%emt 00:00:59]} 23. Rxg4 {[%clk 00:16:17]} {[%emt 00:00:11]} Qxd3 {[%clk
00:09:28]} {[%emt 00:00:07]} 24. Re1 {[%clk 00:16:02]} {[%emt 00:00:15]} Qxc4
{[%clk 00:08:39]} {[%emt 00:01:01]} 25. bxc5 {[%clk 00:15:44]} {[%emt
00:00:22]} bxc5 {[%clk 00:08:40]} {[%emt 00:00:05]} 26. Rc1 {[%clk 00:15:43]}
{[%emt 00:00:06]} Qd5 {[%clk 00:08:32]} {[%emt 00:00:13]} 27. Rf1 {[%clk
00:15:15]} {[%emt 00:00:31]} Bc6 {[%clk 00:08:19]} {[%emt 00:00:20]} 28. Rff4
{[%clk 00:15:00]} {[%emt 00:00:19]} h5 {[%clk 00:08:00]} {[%emt 00:00:25]} 29.
Rg3 {[%clk 00:15:01]} {[%emt 00:00:03]} Ne2 {[%clk 00:08:00]} {[%emt 00:00:06]}
30. Rff3 {[%clk 00:14:52]} {[%emt 00:00:14]} Nxg3+ {[%clk 00:07:50]} {[%emt
00:00:15]} 31. Rxg3 {[%clk 00:14:56]} {[%emt 00:00:01]} Rab8 {[%clk 00:07:53]}
{[%emt 00:00:03]} 32. Qc2 {[%clk 00:14:38]} {[%emt 00:00:21]} Qe4 {[%clk
00:07:41]} {[%emt 00:00:18]} 33. Qd1 {[%clk 00:14:32]} {[%emt 00:00:11]} Rb1
{[%clk 00:07:42]} {[%emt 00:00:04]} 34. Qxb1 {[%clk 00:14:27]} {[%emt
00:00:10]} Qxb1+ {[%clk 00:07:45]} {[%emt 00:00:02]} 35. Kh2 {[%clk 00:14:31]}
Qe1 {[%clk 00:07:39]} {[%emt 00:00:10]} 36. a4 {[%clk 00:14:33]} {[%emt
00:00:04]} Rb8 {[%clk 00:07:42]} {[%emt 00:00:03]} 37. a5 {[%clk 00:14:28]}
{[%emt 00:00:10]} Qe5 {[%clk 00:07:42]} {[%emt 00:00:04]} 38. d4 {[%clk
00:14:29]} {[%emt 00:00:04]} cxd4 {[%clk 00:07:44]} {[%emt 00:00:03]} 39. a6
{[%clk 00:14:33]} {[%emt 00:00:01]} Rb3 {[%clk 00:07:43]} {[%emt 00:00:05]} 40.
Kg1 {[%clk 00:14:27]} {[%emt 00:00:09]} Qe1+ {[%clk 00:07:46]} {[%emt
00:00:05]} 41. Kh2 {[%clk 00:14:26]} {[%emt 00:00:05]} Qxg3+ {[%clk 00:07:49]}
{[%emt 00:00:02]} 42. Kh1 {[%clk 00:14:27]} {[%emt 00:00:04]} Qxg2# {[%emt
00:00:08]} 0-1



[ePGN "0.1;DGT LiveChess/2.2.6"]

[Event "MČR mládeže v rapid šachu 2024 H10"]
[Site "Harrachov, Czech Republic"]
[Date "????.??.??"]
[Round "1.8"]
[White "Temirbek Amirali"]
[Black "Stribrny Matej"]
[Result "1-0"]
[TimeControl "20+5"]
[WhiteFideId "447019808"]
[WhiteElo "1514"]
[BlackElo "1589"]

1. e4 {[%clk 00:20:07]} {[%emt 00:00:03]} e5 {[%clk 00:20:08]} {[%emt
00:00:02]} 2. Nf3 {[%clk 00:20:09]} {[%emt 00:00:03]} Nf6 {[%clk 00:20:11]}
{[%emt 00:00:02]} 3. Nc3 {[%clk 00:20:07]} {[%emt 00:00:07]} Nc6 {[%clk
00:20:13]} {[%emt 00:00:03]} 4. Bb5 {[%clk 00:20:06]} {[%emt 00:00:06]} d6
{[%clk 00:20:05]} {[%emt 00:00:12]} 5. h3 {[%clk 00:19:53]} {[%emt 00:00:18]}
Bd7 {[%clk 00:20:01]} {[%emt 00:00:04]} 6. O-O {[%clk 00:19:54]} {[%emt
00:00:04]} a6 {[%clk 00:20:10]} {[%emt 00:00:02]} 7. Bc4 {[%clk 00:19:57]}
{[%emt 00:00:03]} b5 {[%clk 00:20:11]} {[%emt 00:00:04]} 8. Bb3 {[%clk
00:19:57]} {[%emt 00:00:04]} Na5 {[%clk 00:20:01]} {[%emt 00:00:15]} 9. d4
{[%clk 00:19:47]} {[%emt 00:00:15]} Nxb3 {[%clk 00:19:45]} {[%emt 00:00:21]} 10.
axb3 {[%clk 00:19:50]} {[%emt 00:00:02]} exd4 {[%clk 00:19:29]} {[%emt
00:00:21]} 11. Qxd4 {[%clk 00:19:19]} {[%emt 00:00:37]} Bc6 {[%clk 00:18:32]}
{[%emt 00:01:02]} 12. Bg5 {[%clk 00:18:18]} {[%emt 00:01:07]} Be7 {[%clk
00:18:26]} {[%emt 00:00:10]} 13. Rad1 {[%clk 00:17:52]} {[%emt 00:00:30]} h6
{[%clk 00:18:09]} {[%emt 00:00:23]} 14. Bh4 {[%clk 00:17:11]} {[%emt 00:00:45]}
O-O {[%clk 00:17:54]} {[%emt 00:00:20]} 15. Rfe1 {[%clk 00:16:32]} {[%emt
00:00:45]} Re8 {[%clk 00:16:50]} {[%emt 00:01:09]} 16. e5 {[%clk 00:15:29]}
{[%emt 00:01:09]} dxe5 {[%clk 00:16:14]} {[%emt 00:00:38]} 17. Nxe5 {[%emt
00:01:00]} Bb7 {[%clk 00:15:28]} {[%emt 00:00:01]} 18. Qxd8 {[%clk 00:14:21]}
{[%emt 00:01:09]} Raxd8 {[%clk 00:15:26]} {[%emt 00:00:06]} 19. Rxd8 {[%clk
00:14:25]} {[%emt 00:00:03]} Rxd8 {[%clk 00:15:27]} {[%emt 00:00:03]} 20. Nc6
{[%clk 00:14:14]} {[%emt 00:00:16]} Bxc6 {[%clk 00:14:29]} {[%emt 00:01:03]} 21.
Rxe7 {[%clk 00:14:17]} {[%emt 00:00:02]} g5 {[%clk 00:14:10]} {[%emt 00:00:23]}
22. Bg3 {[%clk 00:14:17]} {[%emt 00:00:06]} Nd5 {[%clk 00:11:41]} {[%emt
00:02:34]} 23. Nxd5 {[%clk 00:14:15]} {[%emt 00:00:07]} Rxd5 {[%clk 00:11:40]}
{[%emt 00:00:06]} 24. Rxc7 {[%clk 00:14:14]} {[%emt 00:00:06]} Rc5 {[%clk
00:11:32]} {[%emt 00:00:12]} 25. c4 {[%clk 00:13:36]} {[%emt 00:00:44]} bxc4
{[%clk 00:11:12]} {[%emt 00:00:25]} 26. b4 {[%clk 00:13:40]} {[%emt 00:00:02]}
c3 {[%clk 00:10:45]} {[%emt 00:00:32]} 27. bxc3 {[%clk 00:13:07]} {[%emt
00:00:38]} Rxc3 {[%clk 00:10:47]} {[%emt 00:00:03]} 28. Rc8+ {[%clk 00:13:08]}
{[%emt 00:00:05]} Kh7 {[%clk 00:10:39]} {[%emt 00:00:13]} 29. Be5 {[%clk
00:11:29]} {[%emt 00:01:43]} Rc4 {[%clk 00:09:57]} {[%emt 00:00:47]} 30. g4
{[%clk 00:10:32]} {[%emt 00:01:02]} Rc1+ {[%clk 00:07:15]} {[%emt 00:02:47]} 31.
Kh2 {[%clk 00:10:35]} {[%emt 00:00:02]} Rh1+ {[%clk 00:07:15]} {[%emt
00:00:04]} 32. Kg3 {[%clk 00:10:37]} {[%emt 00:00:03]} Rg1+ {[%clk 00:07:12]}
{[%emt 00:00:09]} 33. Kh2 {[%clk 00:10:40]} {[%emt 00:00:02]} Rg2+ {[%clk
00:07:12]} {[%emt 00:00:04]} 34. Kh1 {[%clk 00:10:42]} {[%emt 00:00:04]} Rxg4+
{[%clk 00:06:58]} {[%emt 00:00:19]} 35. Rxc6 {[%clk 00:10:45]} {[%emt
00:00:03]} Rxb4 {[%clk 00:06:48]} {[%emt 00:00:15]} 36. Rxa6 {[%clk 00:10:44]}
{[%emt 00:00:06]} f5 {[%clk 00:06:08]} {[%emt 00:00:44]} 37. Ra7+ {[%clk
00:10:36]} {[%emt 00:00:13]} Kg6 {[%clk 00:06:11]} {[%emt 00:00:02]} 38. Ra6+
{[%clk 00:10:28]} {[%emt 00:00:12]} Kh5 {[%clk 00:06:08]} {[%emt 00:00:08]} 39.
Bg7 {[%clk 00:10:29]} {[%emt 00:00:05]} g4 {[%clk 00:05:31]} {[%emt 00:00:43]}
40. Rxh6+ {[%clk 00:10:20]} {[%emt 00:00:13]} Kg5 {[%clk 00:05:34]} {[%emt
00:00:02]} 41. h4+ {[%clk 00:10:06]} {[%emt 00:00:19]} Kf4 {[%clk 00:05:27]}
{[%emt 00:00:07]} 42. Kg2 {[%clk 00:09:58]} {[%emt 00:00:19]} Rb3 {[%clk
00:05:22]} {[%emt 00:00:09]} 43. Re6 {[%clk 00:09:52]} {[%emt 00:00:11]} g3
{[%clk 00:04:45]} {[%emt 00:00:43]} 44. Re3 {[%clk 00:08:02]} {[%emt 00:01:55]}
Rxe3 {[%clk 00:04:05]} {[%emt 00:00:45]} 45. fxe3+ {[%clk 00:08:05]} {[%emt
00:00:03]} Kxe3 {[%clk 00:04:08]} {[%emt 00:00:02]} 46. Kxg3 {[%clk 00:08:07]}
{[%emt 00:00:03]} f4 {[%clk 00:04:12]} 47. Kg2 {[%clk 00:08:07]} {[%emt
00:00:06]} Ke2 {[%clk 00:04:16]} {[%emt 00:00:01]} 48. Bd4 {[%clk 00:08:10]}
{[%emt 00:00:02]} f3 {[%clk 00:04:20]} {[%emt 00:00:02]} 49. Kg1 {[%clk
00:08:11]} {[%emt 00:00:04]} Kd3 {[%clk 00:04:24]} {[%emt 00:00:01]} 50. Ba7
{[%clk 00:08:11]} {[%emt 00:00:04]} Ke4 {[%clk 00:04:23]} {[%emt 00:00:06]} 51.
Kf2 {[%clk 00:07:55]} {[%emt 00:00:21]} Kf4 {[%clk 00:04:23]} {[%emt 00:00:05]}
52. Be3+ {[%clk 00:07:58]} {[%emt 00:00:02]} Kg4 {[%clk 00:04:27]} {[%emt
00:00:01]} 53. Bg5 {[%clk 00:08:02]} {[%emt 00:00:01]} Kh5 {[%clk 00:04:21]}
{[%emt 00:00:12]} 54. Kxf3 {[%clk 00:07:59]} {[%emt 00:00:08]} Kg6 {[%clk
00:04:23]} {[%emt 00:00:03]} 55. Kg4 {[%clk 00:08:00]} {[%emt 00:00:03]} Kh7
{[%clk 00:04:25]} {[%emt 00:00:03]} 56. h5 {[%clk 00:07:59]} {[%emt 00:00:06]}
Kg7 {[%clk 00:04:28]} {[%emt 00:00:02]} 57. Kf5 {[%clk 00:07:56]} {[%emt
00:00:08]} Kh7 {[%clk 00:04:31]} {[%emt 00:00:03]} 58. h6 {[%clk 00:07:50]}
{[%emt 00:00:12]} Kh8 {[%clk 00:04:28]} {[%emt 00:00:08]} 59. Kg6 {[%clk
00:07:49]} {[%emt 00:00:05]} Kg8 {[%clk 00:04:28]} {[%emt 00:00:05]} 60. h7+
{[%clk 00:07:53]} Kh8 {[%clk 00:04:30]} {[%emt 00:00:04]} 61. Bf6# {[%clk
00:07:57]} {[%emt 00:00:01]} 1-0



[ePGN "0.1;DGT LiveChess/2.2.6"]

[Event "MČR mládeže v rapid šachu 2024 H10"]
[Site "Harrachov, Czech Republic"]
[Date "????.??.??"]
[Round "2.1"]
[White "Vo Daniel"]
[Black "Stepnicka Filip"]
[Result "1-0"]
[TimeControl "20+5"]
[WhiteFideId "23761229"]
[BlackFideId "23771542"]
[WhiteElo "1679"]
[BlackElo "1531"]

1. e4 {[%clk 00:20:09]} e5 {[%clk 00:20:06]} {[%emt 00:00:04]} 2. Nf3 {[%clk
00:20:12]} {[%emt 00:00:01]} Nc6 {[%clk 00:20:06]} {[%emt 00:00:05]} 3. d4
{[%clk 00:20:15]} {[%emt 00:00:02]} exd4 {[%clk 00:20:02]} {[%emt 00:00:10]} 4.
Nxd4 {[%clk 00:20:00]} {[%emt 00:00:20]} Bc5 {[%clk 00:20:03]} {[%emt
00:00:02]} 5. Nb3 {[%clk 00:20:04]} {[%emt 00:00:04]} Bb6 {[%clk 00:19:53]}
{[%emt 00:00:15]} 6. Nc3 {[%clk 00:20:04]} {[%emt 00:00:05]} Nf6 {[%clk
00:19:24]} {[%emt 00:00:34]} 7. Qe2 {[%clk 00:19:43]} {[%emt 00:00:26]} d6
{[%clk 00:19:21]} {[%emt 00:00:08]} 8. Be3 {[%clk 00:19:31]} {[%emt 00:00:17]}
O-O {[%clk 00:19:03]} {[%emt 00:00:24]} 9. O-O-O {[%clk 00:18:42]} {[%emt
00:00:53]} Bxe3+ {[%clk 00:18:45]} {[%emt 00:00:23]} 10. Qxe3 {[%clk 00:18:43]}
{[%emt 00:00:04]} Be6 {[%clk 00:18:29]} {[%emt 00:00:21]} 11. h3 {[%clk
00:18:20]} {[%emt 00:00:27]} a5 {[%clk 00:18:12]} {[%emt 00:00:23]} 12. f4
{[%clk 00:17:53]} {[%emt 00:00:33]} a4 {[%clk 00:18:09]} {[%emt 00:00:07]} 13.
Nc5 {[%clk 00:17:41]} {[%emt 00:00:17]} b6 {[%clk 00:17:37]} {[%emt 00:00:38]}
14. Nxe6 {[%clk 00:17:22]} {[%emt 00:00:24]} fxe6 {[%clk 00:17:38]} {[%emt
00:00:04]} 15. Bc4 {[%clk 00:17:02]} {[%emt 00:00:24]} a3 {[%clk 00:16:53]}
{[%emt 00:00:51]} 16. Bxe6+ {[%clk 00:16:42]} {[%emt 00:00:25]} Kh8 {[%clk
00:16:52]} {[%emt 00:00:06]} 17. b3 {[%clk 00:16:42]} {[%emt 00:00:05]} Re8
{[%clk 00:16:14]} {[%emt 00:00:42]} 18. f5 {[%clk 00:16:23]} {[%emt 00:00:25]}
Qe7 {[%clk 00:15:38]} {[%emt 00:00:41]} 19. g4 {[%clk 00:16:05]} {[%emt
00:00:23]} Reb8 {[%clk 00:15:39]} {[%emt 00:00:04]} 20. g5 {[%clk 00:16:02]}
{[%emt 00:00:08]} Nd7 {[%clk 00:15:19]} {[%emt 00:00:26]} 21. Nd5 {[%clk
00:15:37]} {[%emt 00:00:29]} Qd8 {[%clk 00:15:07]} {[%emt 00:00:16]} 22. Rdf1
{[%clk 00:14:58]} {[%emt 00:00:43]} b5 {[%clk 00:14:55]} {[%emt 00:00:18]} 23.
f6 {[%clk 00:14:50]} {[%emt 00:00:13]} g6 {[%clk 00:14:46]} {[%emt 00:00:15]}
24. h4 {[%clk 00:14:42]} {[%emt 00:00:13]} Nce5 {[%clk 00:13:57]} {[%emt
00:00:53]} 25. h5 {[%clk 00:14:29]} {[%emt 00:00:18]} b4 {[%clk 00:13:42]}
{[%emt 00:00:21]} 26. hxg6 {[%clk 00:14:31]} {[%emt 00:00:03]} Nxg6 {[%clk
00:13:40]} {[%emt 00:00:07]} 27. Qh3 {[%clk 00:14:24]} {[%emt 00:00:12]} Ndf8
{[%clk 00:13:33]} {[%emt 00:00:12]} 28. Bf5 {[%clk 00:14:24]} {[%emt 00:00:05]}
Qe8 {[%clk 00:12:42]} {[%emt 00:00:55]} 29. Ne7 {[%clk 00:13:43]} {[%emt
00:00:45]} Nxe7 {[%clk 00:11:55]} {[%emt 00:00:52]} 30. Bxh7 {[%clk 00:13:18]}
{[%emt 00:00:30]} Qd8 {[%clk 00:11:48]} {[%emt 00:00:12]} 31. Bg6+ {[%clk
00:13:11]} {[%emt 00:00:11]} Kg8 {[%clk 00:11:38]} {[%emt 00:00:16]} 32. f7+
{[%clk 00:13:08]} {[%emt 00:00:08]} Kg7 {[%clk 00:11:26]} {[%emt 00:00:17]} 33.
Qh6# {[%clk 00:13:11]} {[%emt 00:00:01]} 1-0



[ePGN "0.1;DGT LiveChess/2.2.6"]

[Event "MČR mládeže v rapid šachu 2024 H10"]
[Site "Harrachov, Czech Republic"]
[Date "????.??.??"]
[Round "2.2"]
[White "Strihavka Petr"]
[Black "Trejbal Jindrich"]
[Result "1/2-1/2"]
[TimeControl "20+5"]
[WhiteFideId "23760702"]
[BlackFideId "23743948"]
[WhiteElo "1546"]
[BlackElo "1631"]

1. e4 {[%clk 00:20:08]} {[%emt 00:00:01]} e5 {[%clk 00:20:09]} {[%emt
00:00:01]} 2. Nf3 {[%clk 00:20:12]} {[%emt 00:00:01]} Nf6 {[%clk 00:20:13]}
{[%emt 00:00:01]} 3. Nc3 {[%clk 00:20:15]} {[%emt 00:00:01]} Nc6 {[%clk
00:20:17]} 4. d4 {[%clk 00:20:19]} {[%emt 00:00:01]} exd4 {[%clk 00:20:09]}
{[%emt 00:00:14]} 5. Nxd4 {[%clk 00:20:22]} {[%emt 00:00:02]} Bb4 {[%clk
00:19:57]} {[%emt 00:00:16]} 6. Nxc6 {[%clk 00:20:25]} {[%emt 00:00:02]} dxc6
{[%clk 00:19:54]} {[%emt 00:00:08]} 7. Qxd8+ {[%clk 00:20:26]} {[%emt
00:00:04]} Kxd8 {[%clk 00:19:57]} {[%emt 00:00:02]} 8. Bg5 {[%clk 00:20:28]}
{[%emt 00:00:02]} Be7 {[%clk 00:19:11]} {[%emt 00:00:51]} 9. O-O-O+ {[%clk
00:20:27]} {[%emt 00:00:05]} Bd7 {[%clk 00:19:00]} {[%emt 00:00:17]} 10. Bc4
{[%clk 00:20:15]} {[%emt 00:00:17]} Ke8 {[%clk 00:18:21]} {[%emt 00:00:45]} 11.
h3 {[%clk 00:20:03]} {[%emt 00:00:16]} Rd8 {[%clk 00:17:38]} {[%emt 00:00:47]}
12. Rhe1 {[%clk 00:19:45]} {[%emt 00:00:23]} Nh5 {[%clk 00:16:22]} {[%emt
00:01:22]} 13. Bxe7 {[%clk 00:18:54]} {[%emt 00:00:55]} Kxe7 {[%clk 00:16:26]}
{[%emt 00:00:02]} 14. Re3 {[%clk 00:17:56]} {[%emt 00:01:01]} Be6 {[%clk
00:15:44]} {[%emt 00:00:49]} 15. Bxe6 {[%clk 00:17:03]} {[%emt 00:00:57]} fxe6
{[%clk 00:14:50]} {[%emt 00:01:00]} 16. Rf3 {[%clk 00:16:27]} {[%emt 00:00:41]}
Rxd1+ {[%clk 00:13:57]} {[%emt 00:00:58]} 17. Kxd1 {[%clk 00:16:30]} {[%emt
00:00:02]} Rd8+ {[%clk 00:13:50]} {[%emt 00:00:12]} 18. Ke2 {[%clk 00:16:16]}
{[%emt 00:00:20]} Nf6 {[%clk 00:13:38]} {[%emt 00:00:16]} 19. e5 {[%clk
00:15:34]} {[%emt 00:00:51]} Nd5 {[%clk 00:13:37]} {[%emt 00:00:12]} 20. a3
{[%clk 00:14:25]} {[%emt 00:01:15]} a5 {[%clk 00:12:48]} {[%emt 00:00:54]} 21.
Nxd5+ {[%clk 00:12:11]} {[%emt 00:02:19]} Rxd5 {[%clk 00:12:23]} {[%emt
00:00:30]} 22. Re3 {[%clk 00:12:04]} {[%emt 00:00:12]} b5 {[%clk 00:11:52]}
{[%emt 00:00:36]} 23. f4 {[%clk 00:10:42]} {[%emt 00:01:26]} Kf7 {[%clk
00:11:01]} {[%emt 00:00:57]} 24. Rc3 {[%clk 00:10:14]} {[%emt 00:00:36]} c5
{[%clk 00:10:54]} {[%emt 00:00:19]} 25. Rd3 {[%clk 00:09:25]} {[%emt 00:00:53]}
c6 {[%clk 00:10:34]} {[%emt 00:00:26]} 26. b3 {[%clk 00:09:08]} {[%emt
00:00:22]} Ke7 {[%clk 00:09:32]} {[%emt 00:01:07]} 27. c4 {[%clk 00:08:14]}
{[%emt 00:00:59]} Rd4 {[%clk 00:09:09]} {[%emt 00:00:28]} 28. Rxd4 {[%clk
00:07:50]} {[%emt 00:00:29]} cxd4 {[%clk 00:09:13]} {[%emt 00:00:02]} 29. c5
{[%clk 00:07:49]} {[%emt 00:00:06]} Kf7 {[%clk 00:08:49]} {[%emt 00:00:29]} 30.
g4 {[%clk 00:06:55]} {[%emt 00:00:59]} g6 {[%clk 00:06:26]} {[%emt 00:02:29]}
31. Kd3 {[%clk 00:06:50]} {[%emt 00:00:09]} h6 {[%clk 00:05:10]} {[%emt
00:01:21]} 32. Kxd4 {[%clk 00:06:09]} {[%emt 00:00:46]} Ke7 {[%clk 00:04:26]}
{[%emt 00:00:50]} 33. Ke4 {[%clk 00:06:01]} {[%emt 00:00:12]} Kf7 {[%clk
00:03:54]} {[%emt 00:00:37]} 34. h4 {[%clk 00:06:00]} {[%emt 00:00:06]} g5
{[%clk 00:03:06]} {[%emt 00:00:54]} 35. hxg5 {[%clk 00:05:32]} {[%emt
00:00:32]} hxg5 {[%clk 00:03:08]} {[%emt 00:00:03]} 36. f5 {[%clk 00:05:27]}
{[%emt 00:00:10]} Ke7 {[%clk 00:03:05]} {[%emt 00:00:08]} 37. fxe6 {[%clk
00:05:13]} {[%emt 00:00:18]} Kxe6 {[%clk 00:03:09]} {[%emt 00:00:01]} 38. b4
{[%clk 00:05:11]} {[%emt 00:00:07]} a4 {[%clk 00:03:09]} {[%emt 00:00:05]} 39.
Kd4 {[%clk 00:05:07]} {[%emt 00:00:09]} Ke7 {[%clk 00:02:56]} {[%emt 00:00:17]}
40. Ke3 {[%clk 00:05:03]} {[%emt 00:00:09]} Kd7 {[%clk 00:02:44]} {[%emt
00:00:18]} 41. Kd3 {[%clk 00:04:48]} {[%emt 00:00:19]} Ke7 {[%clk 00:02:32]}
{[%emt 00:00:17]} 42. Kd4 {[%clk 00:04:47]} {[%emt 00:00:05]} Kd7 {[%clk
00:02:33]} {[%emt 00:00:05]} 1/2-1/2



[ePGN "0.1;DGT LiveChess/2.2.6"]

[Event "MČR mládeže v rapid šachu 2024 H10"]
[Site "Harrachov, Czech Republic"]
[Date "????.??.??"]
[Round "2.3"]
[White "Zidek Damian"]
[Black "Skoloud Josef"]
[Result "1-0"]
[TimeControl "20+5"]
[WhiteFideId "23761652"]
[BlackFideId "23744111"]
[WhiteElo "1763"]
[BlackElo "1683"]

1. d4 {[%emt 00:08:04]} d5 {[%emt 00:00:02]} 2. c4 {[%emt 00:00:01]} e6 {[%emt
00:00:04]} 3. Nc3 {[%emt 00:00:02]} Nf6 {[%emt 00:00:04]} 4. cxd5 {[%emt
00:00:03]} exd5 {[%emt 00:00:17]} 5. Bg5 {[%emt 00:00:01]} Be7 {[%emt
00:00:12]} 6. e3 {[%emt 00:00:01]} O-O {[%emt 00:01:45]} 7. Bd3 {[%emt
00:00:02]} Be6 {[%emt 00:05:28]} 8. Nge2 {[%emt 00:00:06]} h6 {[%emt 00:05:11]}
9. Bh4 {[%emt 00:00:07]} Nbd7 {[%emt 00:00:44]} 10. O-O {[%emt 00:00:18]} Ng4
{[%emt 00:01:36]} 11. Bg3 {[%emt 00:00:23]} h5 {[%emt 00:00:44]} 12. h3 {[%emt
00:00:18]} Nh6 {[%emt 00:01:43]} 13. Qc2 {[%emt 00:01:00]} h4 {[%emt 00:00:33]}
14. Bh2 {[%emt 00:00:40]} Nf6 {[%emt 00:00:44]} 15. Bf4 {[%emt 00:00:56]} Bd6
{[%emt 00:00:53]} 16. Bxh6 {[%emt 00:00:24]} gxh6 {[%emt 00:00:02]} 17. Nb5
{[%emt 00:00:13]} Qd7 {[%emt 00:00:36]} 18. Nxd6 {[%emt 00:00:12]} cxd6 {[%emt
00:00:14]} 19. Nf4 {[%emt 00:00:15]} Rac8 {[%emt 00:00:17]} 20. Qd2 {[%emt
00:00:23]} Ne4 {[%emt 00:00:15]} 21. Bxe4 {[%emt 00:00:04]} dxe4 {[%emt
00:00:02]} 22. Rac1 {[%emt 00:00:09]} Kh8 {[%emt 00:00:21]} 23. a3 {[%emt
00:00:26]} Rg8 {[%emt 00:00:04]} 24. Kh2 {[%emt 00:00:02]} d5 {[%emt 00:00:09]}
25. Qe2 {[%emt 00:00:43]} Kh7 {[%emt 00:00:03]} 1-0



[ePGN "0.1;DGT LiveChess/2.2.6"]